[Event "CAT-chT Honor Division 2019"]
[Site "Catalonia"]
[Date "2019.03.16"]
[Round "8"]
[White "Alquezar Calpena, Marc"]
[Black "Jareno Badenas, Aleix"]
[Result "0-1"]
[ECO "C06"]
[WhiteElo "1666"]
[BlackElo "2041"]
[Annotator "NA"]
[PlyCount "72"]
[EventDate "2019.01.16"]
[EventType "team-tourn"]
[EventCountry "ESP"]
[SourceTitle "playchess.com"]
[Source "ChessBase"]
[SourceQuality "1"]
[TimeControl "5400+30"]

1. e4 {[%emt 0:01:04]} e6 {[%emt 0:00:00]} 2. d4 {[%emt 0:00:31]} d5 {[%emt 0:00:00]} 3. Nd2 {[%emt 0:00:09]} Nf6 {[%emt 0:00:00]} 4. e5 {[%emt 0:00:05]} Nfd7 {[%emt 0:00:00]} 5. Bd3 {[%emt 0:00:03]} c5 {[%emt 0:00:01]} 6. c3 {[%emt 0:00:04]} Nc6 {[%emt 0:00:04]} 7. Ne2 {[%emt 0:00:08]} cxd4 {[%emt 0:00:04]} 8. cxd4 {[%emt 0:00:11]} f6 {[%emt 0:00:04]} 9. exf6 {[%emt 0:00:11]} Nxf6 {[%emt 0:00:04]} 10. Nf3 {[%emt 0:00:08]} Bd6 {[%emt 0:00:04]} 11. O-O {[%emt 0:00:38]} O-O {[%emt 0:00:59]} 12. Bg5 {[%emt 0:01:43]} Qc7 {[%emt 0:01:38]} 13. Rc1 {[%emt 0:03:20]} Nh5 {[%emt 0:07:53]} 14. Ng3 {[%emt 0:07:06]} Nf4 {[%emt 0:09:42]} 15. Bb1 {[%emt 0:11:50]} g6 {[%emt 0:25:17]} 16. a3 {[%emt 0:08:31]} Qg7 {[%emt 0:02:22]} 17. Rc3 {[%emt 0:13:44]} Bd7 {[%emt 0:07:22]} 18. Qd2 {[%emt 0:07:42]} Rf7 {[%emt 0:05:18]} 19. Rd1 {[%emt 0:14:14]} Raf8 {[%emt 0:17:09]} 20. Ne2 {[%emt 0:01:48]} Nxe2+ {[%emt 0:04:11]} 21. Qxe2 {[%emt 0:00:10]} h6 {[%emt 0:00:41]} 22. Be3 {[%emt 0:12:03]} g5 {[%emt 0:03:54]} 23. Qd3 {[%emt 0:03:43]} Rf6 {[%emt 0:02:45]} 24. Rd2 {[%emt 0:07:03]} Be8 {[%emt 0:00:19]} 25. b4 {[%emt 0:01:05]} a6 {[%emt 0:09:28]} 26. h3 {[%emt 0:01:12]} Bg6 {[%emt 0:03:00]} 27. Qf1 {[%emt 0:00:09]} Rxf3 {[%emt 0:00:31]} 28. gxf3 {[%emt 0:00:45]} Bh5 {[%emt 0:00:03]} 29. Qd3 {[%emt 0:01:02]} Rxf3 {[%emt 0:00:32]} 30. Qf1 {[%emt 0:00:54]} Rf6 {[%emt 0:00:55]} 31. Qg2 {[%emt 0:01:03]} Bf3 {[%emt 0:00:11]} 32. Qf1 {[%emt 0:00:38]} g4 {[%emt 0:00:53]} 33. h4 {[%emt 0:01:03]} Kh8 {[%emt 0:00:31]} 34. h5 {[%emt 0:02:12]} g3 {[%emt 0:00:04]} 35. Bg6 {[%emt 0:00:24]} g2 {[%emt 0:00:01]} 36. Qd3 {[%emt 0:00:39]} Qc7 {[%emt 0:00:03]} 0-1

[Event "CAT-chT Honor Division 2019"]
[Site "Catalonia"]
[Date "2019.03.23"]
[Round "9"]
[White "Moskalenko, Viktor"]
[Black "Gonzalez Garcia, Jose"]
[Result "*"]
[ECO "D13"]
[WhiteElo "2515"]
[BlackElo "2492"]
[Annotator "RC"]
[PlyCount "65"]
[EventDate "2019.01.16"]
[EventType "team-tourn"]
[EventCountry "ESP"]
[SourceTitle "playchess.com"]
[Source "ChessBase"]
[SourceQuality "1"]
[WhiteTeam "BCN"]
[BlackTeam "Colon Sabadell"]
[TimeControl "5400+30"]

1. d4 d5 2. c4 c6 3. cxd5 cxd5 4. Nc3 Nf6 5. Bf4 Nc6 6. e3 a6 7. Rc1 Bf5 8. Nf3 e6 9. Qb3 Bb4 10. Ne5 O-O 11. Nxc6 Bxc3+ 12. Qxc3 bxc6 13. h4 Nh5 14. Be5 Nf6 15. Be2 h6 16. f3 Nd7 17. Bd6 Re8 18. g4 Bg6 19. h5 Bh7 20. Kf2 Nb8 21. Bg3 a5 22. b3 a4 23. b4 a3 24. Qc5 Na6 25. Qd6 Qxd6 26. Bxd6 Red8 27. Rxc6 Rxd6 28. Rxd6 Nxb4 29. Rb6 Nd3+ 30. Kg3 g5 31. hxg6 Bxg6 32. Bxd3 Bxd3 33. Rxh6 *

[Event "CAT-chT Honor Division 2019"]
[Site "Catalonia"]
[Date "2019.03.23"]
[Round "9"]
[White "Alonso Moyano, Jonathan"]
[Black "Fernandez Madrid, Carlos"]
[Result "1/2-1/2"]
[ECO "B06"]
[WhiteElo "2374"]
[BlackElo "2042"]
[Annotator "ChessBase"]
[PlyCount "133"]
[EventDate "2019.01.16"]
[EventType "team-tourn"]
[EventCountry "ESP"]
[SourceTitle "playchess.com"]
[Source "ChessBase"]
[SourceQuality "1"]
[WhiteTeam "Barbera"]
[BlackTeam "Sant Josep Badalona"]
[TimeControl "5400+30"]

1. e4 {[%emt 0:00:00]} g6 {[%emt 0:00:25]} 2. d4 {[%emt 0:00:52]} Bg7 {[%emt 0:00:21]} 3. Nf3 {[%emt 0:01:03]} d6 {[%emt 0:00:35]} 4. Bc4 {[%emt 0:05:03]} e6 {[%emt 0:00:36]} 5. Qe2 {[%emt 0:00:35]} a6 {[%emt 0:00:41]} 6. a4 {[%emt 0:00:40]} Ne7 {[%emt 0:00:13]} 7. Bb3 {[%emt 0:01:19]} Nd7 {[%emt 0:00:53]} 8. O-O {[%emt 0:00:29]} b6 {[%emt 0:00:46]} 9. c3 {[%emt 0:02:14]} Bb7 {[%emt 0:00:13]} 10. Bg5 {[%emt 0:00:33]} h6 {[%emt 0:01:33]} 11. Bh4 {[%emt 0:04:44]} g5 {[%emt 0:03:48]} 12. Bg3 {[%emt 0:00:04]} Ng6 {[%emt 0:00:26]} 13. Nbd2 {[%emt 0:09:33]} h5 {[%emt 0:02:23]} 14. h3 {[%emt 0:04:17]} g4 {[%emt 0:01:44]} 15. hxg4 {[%emt 0:00:54]} hxg4 {[%emt 0:01:41]} 16. Nh2 {[%emt 0:00:47]} Qg5 {[%emt 0:03:48]} 17. Nxg4 {[%emt 0:00:59]} O-O-O {[%emt 0:04:20]} 18. f4 {[%emt 0:06:18]} Qh5 {[%emt 0:01:44]} 19. Kf2 {[%emt 0:00:46]} Rde8 {[%emt 0:13:45]} 20. Rh1 {[%emt 0:12:06]} Qxh1 {[%emt 0:00:11]} 21. Rxh1 {[%emt 0:00:05]} Rxh1 {[%emt 0:00:02]} 22. Qd3 {[%emt 0:00:46]} Kb8 {[%emt 0:06:58]} 23. e5 {[%emt 0:04:37]} dxe5 {[%emt 0:01:49]} 24. fxe5 {[%emt 0:02:49]} Rd8 {[%emt 0:05:01]} 25. Qe2 {[%emt 0:04:15]} Ne7 {[%emt 0:02:30]} 26. Bc2 {[%emt 0:02:39]} Rg8 {[%emt 0:03:34]} 27. Be4 {[%emt 0:01:01]} Bxe4 {[%emt 0:01:28]} 28. Nxe4 {[%emt 0:02:23]} Nf5 {[%emt 0:03:16]} 29. Qxa6 {[%emt 0:05:21]} Nxg3 {[%emt 0:03:54]} 30. Nxg3 {[%emt 0:00:42]} Rh4 {[%emt 0:01:25]} 31. Ne3 {[%emt 0:03:12]} Bxe5 {[%emt 0:02:51]} 32. Ngf1 {[%emt 0:01:27]} Bg3+ {[%emt 0:05:52]} 33. Ke2 {[%emt 0:01:12]} Rh5 {[%emt 0:01:06]} 34. b4 {[%emt 0:03:38]} Rgg5 {[%emt 0:05:17]} 35. Nxg3 {[%emt 0:04:10]} Rxg3 {[%emt 0:01:13]} 36. a5 {[%emt 0:00:03]} bxa5 {[%emt 0:02:25]} 37. bxa5 {[%emt 0:00:54]} Rgg5 {[%emt 0:00:36]} 38. Qc6 {[%emt 0:01:53]} Nf6 {[%emt 0:03:23]} 39. a6 {[%emt 0:00:23]} Rb5 {[%emt 0:00:17]} 40. Qf3 {[%emt 0:06:22]} Rh6 {[%emt 0:06:16]} 41. Kd3 {[%emt 0:02:08]} Rg6 {[%emt 0:01:25]} 42. g4 {[%emt 0:00:42]} e5 {[%emt 0:02:26]} 43. dxe5 {[%emt 0:01:36]} Nd7 {[%emt 0:00:04]} 44. Nc4 {[%emt 0:00:04]} Nc5+ {[%emt 0:01:04]} 45. Kd2 {[%emt 0:01:20]} Rxa6 {[%emt 0:00:36]} 46. Qxf7 {[%emt 0:00:21]} Nb3+ {[%emt 0:02:03]} 47. Kd3 {[%emt 0:01:18]} Rc6 {[%emt 0:01:03]} 48. Ne3 {[%emt 0:01:05]} Nc1+ {[%emt 0:00:41]} 49. Kd2 {[%emt 0:02:25]} Rxe5 {[%emt 0:00:07]} 50. Nd5 {[%emt 0:01:30]} Nb3+ {[%emt 0:00:35]} 51. Kc2 {[%emt 0:00:32]} Nd4+ {[%emt 0:00:21]} 52. Kd3 {[%emt 0:00:21]} Ne6 {[%emt 0:00:35]} 53. Nb4 {[%emt 0:01:17]} Rd6+ {[%emt 0:00:20]} 54. Kc2 {[%emt 0:00:02]} Re2+ {[%emt 0:00:31]} 55. Kb3 {[%emt 0:00:24]} Nc5+ {[%emt 0:01:03]} 56. Kc4 {[%emt 0:00:37]} Nd7 {[%emt 0:00:04]} 57. Kb3 {[%emt 0:00:57]} Rdd2 {[%emt 0:01:20]} 58. Qg8+ {[%emt 0:00:34]} Kb7 {[%emt 0:00:12]} 59. g5 {[%emt 0:00:26]} Nb6 {[%emt 0:00:10]} 60. g6 {[%emt 0:00:27]} Rb2+ {[%emt 0:00:05]} 61. Ka3 {[%emt 0:00:01]} Rb1 {[%emt 0:01:08]} 62. g7 {[%emt 0:00:37]} Rg1 {[%emt 0:00:30]} 63. Qf7 {[%emt 0:00:26]} Reg2 {[%emt 0:00:14]} 64. Qf3+ {[%emt 0:00:23]} Kc8 {[%emt 0:00:43]} 65. Qf8+ {[%emt 0:00:45]} Kb7 {[%emt 0:01:51]} 66. Qf3+ {[%emt 0:00:05]} Kc8 {[%emt 0:00:50]} 67. Qf8+ {[%emt 0:00:05]} 1/2-1/2

[Event "CAT-chT Honor Division 2019"]
[Site "Catalonia"]
[Date "2019.03.23"]
[Round "9"]
[White "Bofill Mas, Alejandro"]
[Black "Hernando Rodrigo, Julio Antonio"]
[Result "1-0"]
[ECO "A37"]
[WhiteElo "2324"]
[BlackElo "2308"]
[Annotator "NA"]
[PlyCount "89"]
[EventDate "2019.01.16"]
[EventType "team-tourn"]
[EventCountry "ESP"]
[SourceTitle "playchess.com"]
[Source "ChessBase"]
[SourceQuality "1"]
[WhiteTeam "Colon Sabadell"]
[BlackTeam "BCN"]
[TimeControl "5400+30"]

1. c4 c5 2. g3 Nc6 3. Bg2 g6 4. Nc3 Bg7 5. Nf3 e5 6. O-O Nge7 7. a3 O-O 8. Rb1 a5 9. Ne1 d6 10. Nc2 Be6 11. Ne3 Rb8 12. d3 {A37: Symmetrical English vs ...g6: 4 Bg2 Bg7 5 Nf3} Qd7 (12... Nd4 13. Ned5 Nxd5 14. cxd5 Bd7 15. a4 b5 16. e3 b4 17. Ne4 Nf5 18. b3 Bc8 19. Nd2 Ba6 20. Qc2 Nh6 21. Bb2 f5 {½-½ (44) Howell,D (2639)-Jones,G (2643) Torquay 2013}) 13. Ned5 Bh3 14. Bxh3 Qxh3 15. b4 Nxd5 16. Nxd5 axb4 17. axb4 cxb4 18. Nxb4 f5 $146 19. Nxc6 bxc6 20. Rxb8 Rxb8 21. Qa4 Rc8 22. Ba3 Bf8 23. Rb1 f4 24. Rb7 Qf5 25. Qa7 g5 26. f3 h5 27. gxf4 Qxf4 28. Rd7 Qf6 29. Qb7 Rd8 30. Rxd8 Qxd8 31. Qxc6 Kg7 32. Kg2 g4 33. Qb7+ Be7 34. fxg4 hxg4 35. c5 Kf6 36. cxd6 Bf8 37. Bb4 Ke6 38. Qc6 Kf5 39. Qe4+ Kf6 40. Qxg4 Qb6 41. Qf3+ (41. d7 $142 Bxb4 42. Qh4+ Kf7 43. d8=Q Qxd8 44. Qxd8 Be7 45. Qc7 Kf8 46. Qxe5) 41... Kg7 42. Qg3+ Kf7 43. Qf2+ Qxf2+ 44. Kxf2 Bh6 45. d7 1-0

[Event "CAT-chT Honor Division 2019"]
[Site "Catalonia"]
[Date "2019.03.23"]
[Round "9"]
[White "Vehi Bach, Victor Manuel"]
[Black "Perpinya Rofes, Lluis Maria"]
[Result "1-0"]
[ECO "B66"]
[WhiteElo "2306"]
[BlackElo "2317"]
[Annotator "NA"]
[PlyCount "70"]
[EventDate "2019.01.16"]
[EventType "team-tourn"]
[EventCountry "ESP"]
[SourceTitle "playchess.com"]
[Source "ChessBase"]
[SourceQuality "1"]
[WhiteTeam "BCN"]
[BlackTeam "Colon Sabadell"]
[TimeControl "5400+30"]

1. e4 c5 2. Nf3 Nc6 3. d4 cxd4 4. Nxd4 Nf6 5. Nc3 d6 6. Bg5 e6 7. Qd2 a6 8. O-O-O h6 9. Nxc6 bxc6 10. Bf4 d5 11. Qe3 Bb4 12. a3 {B66: Sicilian: Richter-Rauzer: 7...a6 8 0-0-0 h6} Ba5 13. exd5 cxd5 14. Be2 O-O 15. Qg3 Kh8 16. Be5 Bd7 17. h4 {[#]} Ra7 $146 ({Predecessor:} 17... Ne8 18. f4 f6 19. Bd4 Nd6 {1-0 (31) Ponomariov,R (2697)-Golubka,P (2503) Batumi 2018}) 18. Qf4 Bc7 19. Bxc7 Rxc7 20. Bxa6 Rxc3 21. bxc3 Ne4 22. Bd3 Nxc3 23. Rde1 Qa5 24. Kb2 d4 25. Qd6 Rd8 26. Re5 $1 Qa7 27. Kc1 Rb8 28. Kd2 Nd5 {[#]} 29. Rb1 $1 {Back Rank} Re8 30. Ke1 f6 31. Rxd5 exd5+ 32. Kf1 Be6 33. Re1 Qf7 34. Bb5 Re7 35. Bc6 Qg6 $18 1-0

[Event "CAT-chT Honor Division 2019"]
[Site "Catalonia"]
[Date "2019.03.23"]
[Round "9"]
[White "Garcia Ramos, Daniel"]
[Black "Chueca Forcen, Alberto"]
[Result "1-0"]
[ECO "C65"]
[WhiteElo "2282"]
[BlackElo "2270"]
[Annotator "ChessBase"]
[PlyCount "91"]
[EventDate "2019.01.16"]
[EventType "team-tourn"]
[EventCountry "ESP"]
[SourceTitle "playchess.com"]
[Source "ChessBase"]
[SourceQuality "1"]
[WhiteTeam "Colon Sabadell"]
[BlackTeam "BCN"]
[TimeControl "5400+30"]

1. e4 e5 2. Nf3 Nc6 3. Bb5 Nf6 4. d3 Bc5 5. c3 d6 6. Nbd2 O-O 7. Nf1 d5 8. Qe2 Re8 9. Bg5 a6 10. Ba4 b5 11. Bb3 dxe4 12. dxe4 h6 13. Rd1 Qe7 14. Bh4 Be6 15. Ne3 Bxe3 16. Qxe3 Bxb3 17. axb3 Ng4 18. Qe2 Qe6 19. b4 Nf6 20. O-O Nd7 21. Ne1 g5 22. Bg3 f6 23. Nc2 Nb6 24. Ne3 Ne7 25. Rd2 Red8 26. Rfd1 Rxd2 27. Rxd2 Kg7 28. f3 Nbc8 29. Rd8 Nb6 30. Rd1 Nbc8 31. Nd5 Ra7 32. Bf2 Rb7 33. Bc5 Ng6 34. Qd2 c6 35. Ne3 Nce7 36. Qd8 Qa2 37. Qa8 Rc7 38. Qb8 Rc8 39. Nf5+ Kh7 40. Qb7 Qa4 41. Re1 Rf8 42. Bxe7 Rf7 43. Qxc6 Qc2 44. Qe6 Rg7 45. Qxf6 Rxe7 46. Nxe7 1-0

[Event "CAT-chT Honor Division 2019"]
[Site "Catalonia"]
[Date "2019.03.23"]
[Round "9"]
[White "Martinez Ramirez, Erik"]
[Black "Barcelo Sola, David"]
[Result "1-0"]
[ECO "B34"]
[WhiteElo "2222"]
[BlackElo "1991"]
[Annotator "NA"]
[PlyCount "99"]
[EventDate "2019.01.16"]
[EventType "team-tourn"]
[EventCountry "ESP"]
[SourceTitle "playchess.com"]
[Source "ChessBase"]
[SourceQuality "1"]
[WhiteTeam "Barbera"]
[BlackTeam "Sant Josep Badalona"]
[TimeControl "5400+30"]

1. e4 {[%emt 0:00:00]} c5 {[%emt 0:00:00]} 2. Nf3 {[%emt 0:00:00]} Nc6 {[%emt 0:00:00]} 3. d4 {[%emt 0:00:00]} cxd4 {[%emt 0:00:03]} 4. Nxd4 {[%emt 0:00:00]} g6 {[%emt 0:00:11]} 5. Nc3 {[%emt 0:00:14]} Bg7 {[%emt 0:00:10]} 6. Be3 {[%emt 0:00:06]} Nf6 {[%emt 0:00:42]} 7. Bc4 {[%emt 0:00:23]} O-O {[%emt 0:00:20]} 8. Bb3 {[%emt 0:00:19]} a5 {[%emt 0:01:30]} 9. f3 {[%emt 0:03:34]} d5 {[%emt 0:01:36]} 10. Bxd5 {[%emt 0:05:24] B35: Sicilian: Accelerated Dragon with 5 Nc3: main line} (10. exd5 Nb4 11. Nde2 a4 12. Nxa4 Nfxd5 13. Bd4 Bf5 14. Bxg7 Bxc2 15. Bxc2 Ne3 16. Qxd8 Nexc2+ 17. Kf2 Rfxd8 18. Nb6 Ra6 19. Bc3 Nd3+ 20. Kg3 Nxa1 21. Rxa1 Rxb6 {0-1 (34) Drozdowski,K (2507)-Belous,V (2585) Arlington 2016}) 10... Nxd5 {[%emt 0:00:41]} 11. exd5 {[%emt 0:00:42]} Nb4 {[%emt 0:00:38]} 12. Ndb5 {[%emt 0:01:34]} Bf5 {[%emt 0:12:47]} 13. Rc1 {[%emt 0:00:15]} Rc8 {[%emt 0:10:03]} 14. a3 {[%emt 0:03:41]} Qd7 {[%emt 0:05:43]} 15. axb4 {[%emt 0:10:17]} axb4 {[%emt 0:00:17]} 16. g4 {[%emt 0:00:10]} bxc3 {[%emt 0:01:21]} 17. Nxc3 {[%emt 0:00:58]} b5 $146 {[%emt 0:16:01]} ({Predecessor:} 17... Bxc3+ 18. bxc3 Rxc3 {1-0 (31) Blaskowski,J (2332)-Reich,T (2368) Austria 2009}) 18. gxf5 {[%emt 0:03:53]} b4 {[%emt 0:00:40]} 19. fxg6 {[%emt 0:06:45]} bxc3 {[%emt 0:02:15]} 20. gxh7+ {[%emt 0:00:05]} Kxh7 {[%emt 0:00:42]} 21. bxc3 {[%emt 0:00:52]} Bxc3+ {[%emt 0:02:43]} 22. Kf2 {[%emt 0:00:34]} Qh3 {[%emt 0:03:51]} 23. Qd3+ {[%emt 0:01:50]} f5 {[%emt 0:00:34]} 24. Bf4 {[%emt 0:02:59]} e5 {[%emt 0:09:24]} 25. dxe6 {[%emt 0:09:13]} Rfd8 {[%emt 0:00:40]} 26. Bd6 {[%emt 0:02:05]} Bb4 {[%emt 0:15:29]} 27. f4 {[%emt 0:16:09]} Bc5+ {[%emt 0:05:59]} 28. Bxc5 {[%emt 0:02:14]} Rxd3 {[%emt 0:00:10]} 29. cxd3 {[%emt 0:00:05]} Qh4+ {[%emt 0:05:56]} 30. Ke3 {[%emt 0:00:25]} Qh3+ {[%emt 0:00:39]} 31. Kf2 {[%emt 0:00:07]} Qh4+ {[%emt 0:00:30]} 32. Ke3 {[%emt 0:02:49]} Qh3+ {[%emt 0:00:23]} 33. Kd4 {[%emt 0:02:29]} Rd8+ {[%emt 0:01:12]} 34. Ke5 {[%emt 0:00:01]} Qxd3 {[%emt 0:01:27]} 35. Kf6 $11 {[%emt 0:06:28]} Re8 {[%emt 0:01:24]} 36. Kf7 {[%emt 0:02:32]} Rg8 {[%emt 0:01:02]} 37. Rhg1 {[%emt 0:00:37]} Qd8 {[%emt 0:00:40]} 38. Rxg8 {[%emt 0:02:53]} Qxg8+ {[%emt 0:00:03]} 39. Kf6 {[%emt 0:00:14]} Qg6+ {[%emt 0:00:12]} 40. Ke5 {[%emt 0:00:14]} Qg2 {[%emt 0:01:03]} 41. Kxf5 {[%emt 0:04:13]} Qd5+ {[%emt 0:00:33]} 42. Kf6 {[%emt 0:00:36]} Qd2 {[%emt 0:00:17]} 43. Rc4 {[%emt 0:01:53]} Qd5 {[%emt 0:01:06]} 44. Rc3 {[%emt 0:01:36]} Qd2 {[%emt 0:00:19]} 45. Rh3+ {[%emt 0:00:41]} Kg8 {[%emt 0:00:06]} 46. Rg3+ {[%emt 0:00:09]} Kh7 {[%emt 0:00:15]} 47. f5 {[%emt 0:00:18]} Qd5 {[%emt 0:01:07]} 48. Bf8 {[%emt 0:02:19]} Qd4+ {[%emt 0:00:42]} 49. Kf7 {[%emt 0:00:26]} Qd8 {[%emt 0:00:25]} 50. Rh3+ {[%emt 0:00:08]} 1-0

[Event "CAT-chT Honor Division 2019"]
[Site "Catalonia"]
[Date "2019.03.23"]
[Round "9"]
[White "Campins Machado, Francesc"]
[Black "Hernandez, Cristian Andres"]
[Result "0-1"]
[ECO "A06"]
[WhiteElo "2109"]
[BlackElo "2320"]
[Annotator "ChessBase"]
[PlyCount "100"]
[EventDate "2019.01.16"]
[EventType "team-tourn"]
[EventCountry "ESP"]
[SourceTitle "playchess.com"]
[Source "ChessBase"]
[SourceQuality "1"]
[WhiteTeam "Sant Josep Badalona"]
[BlackTeam "Barbera"]
[TimeControl "5400+30"]

1. Nf3 {[%emt 0:00:00]} d5 {[%emt 0:00:14]} 2. c4 {[%emt 0:00:00]} e6 {[%emt 0:00:47]} 3. g3 {[%emt 0:00:23]} dxc4 {[%emt 0:00:29]} 4. Qa4+ {[%emt 0:00:32]} Bd7 {[%emt 0:00:12]} 5. Qxc4 {[%emt 0:00:39]} c5 {[%emt 0:00:04]} 6. Ne5 {[%emt 0:05:21]} Nc6 {[%emt 0:00:03]} 7. Nxd7 {[%emt 0:00:51]} Qxd7 {[%emt 0:00:05]} 8. Bg2 {[%emt 0:00:15]} Nf6 {[%emt 0:00:06]} 9. O-O {[%emt 0:02:17]} Be7 {[%emt 0:00:06]} 10. b3 {[%emt 0:03:10]} O-O {[%emt 0:01:32]} 11. Bb2 {[%emt 0:00:49]} Rac8 {[%emt 0:02:26]} 12. d3 {[%emt 0:10:38]} Nd4 {[%emt 0:02:23]} 13. Re1 {[%emt 0:00:42]} Rfd8 {[%emt 0:02:14]} 14. Nd2 {[%emt 0:01:41]} Nd5 {[%emt 0:07:00]} 15. a3 {[%emt 0:08:38]} b5 {[%emt 0:11:26]} 16. Qc1 {[%emt 0:00:28]} a6 {[%emt 0:01:48]} 17. Qd1 {[%emt 0:08:38]} Nc6 {[%emt 0:06:17]} 18. Rc1 {[%emt 0:02:44]} Na5 {[%emt 0:06:16]} 19. Qc2 {[%emt 0:05:29]} Nb7 {[%emt 0:16:13]} 20. Qb1 {[%emt 0:02:56]} Bg5 {[%emt 0:04:50]} 21. Rc2 {[%emt 0:03:34]} Na5 {[%emt 0:00:15]} 22. Ba1 {[%emt 0:04:59]} Be7 {[%emt 0:11:25]} 23. Rec1 {[%emt 0:03:03]} Nb7 {[%emt 0:00:24]} 24. Qb2 {[%emt 0:01:46]} Bf6 {[%emt 0:01:53]} 25. Qa2 {[%emt 0:00:19]} Bxa1 {[%emt 0:03:20]} 26. Qxa1 {[%emt 0:00:27]} Rc7 {[%emt 0:03:43]} 27. d4 {[%emt 0:14:53]} Qe7 {[%emt 0:05:18]} 28. dxc5 {[%emt 0:06:07]} Rxc5 {[%emt 0:00:29]} 29. Rxc5 {[%emt 0:03:56]} Nxc5 {[%emt 0:00:04]} 30. Qd4 {[%emt 0:00:27]} Nb7 {[%emt 0:03:36]} 31. b4 {[%emt 0:04:21]} a5 {[%emt 0:07:50]} 32. Bxd5 {[%emt 0:02:26]} Rxd5 {[%emt 0:00:16]} 33. Rc8+ {[%emt 0:00:15]} Nd8 {[%emt 0:00:17]} 34. Qc3 {[%emt 0:00:20]} axb4 {[%emt 0:00:58]} 35. axb4 {[%emt 0:00:06]} h6 {[%emt 0:01:22]} 36. Nf3 {[%emt 0:00:51]} Qd6 {[%emt 0:00:32]} 37. e3 {[%emt 0:02:01]} Rd3 {[%emt 0:01:06]} 38. Qc5 {[%emt 0:00:16]} Rd1+ {[%emt 0:00:06]} 39. Kg2 {[%emt 0:00:07]} Qd3 {[%emt 0:00:19]} 40. Nd4 {[%emt 0:02:34]} Qf1+ {[%emt 0:00:40]} 41. Kf3 {[%emt 0:00:02]} Rd2 {[%emt 0:00:51]} 42. Rxd8+ {[%emt 0:00:54]} Kh7 {[%emt 0:00:04]} 43. Nxe6 {[%emt 0:00:53]} Rxf2+ {[%emt 0:00:52]} 44. Ke4 {[%emt 0:00:40]} fxe6 {[%emt 0:00:43]} 45. Rd3 {[%emt 0:00:30]} Rf5 {[%emt 0:00:37]} 46. Qc2 {[%emt 0:00:30]} Rf2 {[%emt 0:00:50]} 47. Qc8 {[%emt 0:00:23]} Qh1+ {[%emt 0:00:15]} 48. Ke5 {[%emt 0:00:34]} Rf5+ {[%emt 0:00:24]} 49. Kd4 {[%emt 0:00:34]} Rd5+ {[%emt 0:00:11]} 50. Kc3 {[%emt 0:00:16]} Qc1+ {[%emt 0:00:06]} 0-1

[Event "CAT-chT Honor Division 2019"]
[Site "Catalonia"]
[Date "2019.03.23"]
[Round "9"]
[White "Fernandez Serrano, Pau"]
[Black "Obon Temprano, Sergi"]
[Result "1/2-1/2"]
[ECO "D00"]
[WhiteElo "2033"]
[BlackElo "2273"]
[Annotator "ChessBase"]
[PlyCount "91"]
[EventDate "2019.01.16"]
[EventType "team-tourn"]
[EventCountry "ESP"]
[SourceTitle "playchess.com"]
[Source "ChessBase"]
[SourceQuality "1"]
[WhiteTeam "Sant Josep Badalona"]
[BlackTeam "Barbera"]
[TimeControl "5400+30"]

1. d4 {[%emt 0:02:22]} d5 {[%emt 0:01:07]} 2. Bf4 {[%emt 0:00:08]} Nf6 {[%emt 0:00:08]} 3. e3 {[%emt 0:00:09]} e6 {[%emt 0:00:12]} 4. Nf3 {[%emt 0:01:56]} Bd6 {[%emt 0:00:08]} 5. Bg3 {[%emt 0:00:09]} O-O {[%emt 0:00:28]} 6. Nbd2 {[%emt 0:03:26]} Nc6 {[%emt 0:00:29]} 7. c3 {[%emt 0:03:48]} Qe7 {[%emt 0:01:00]} 8. Ne5 {[%emt 0:00:23]} Nd7 {[%emt 0:01:24]} 9. Nxc6 {[%emt 0:12:45]} bxc6 {[%emt 0:00:09]} 10. f4 {[%emt 0:01:04]} f6 {[%emt 0:05:08]} 11. Be2 {[%emt 0:09:44]} Rb8 {[%emt 0:04:08]} 12. Rb1 {[%emt 0:01:12]} e5 {[%emt 0:01:09]} 13. O-O {[%emt 0:02:11]} c5 {[%emt 0:03:23]} 14. Nb3 {[%emt 0:13:57]} Bb7 {[%emt 0:04:46]} 15. Bg4 {[%emt 0:05:54]} Nb6 {[%emt 0:10:15]} 16. Na5 {[%emt 0:08:13]} Ba8 {[%emt 0:09:15]} 17. Qd2 {[%emt 0:05:13]} cxd4 {[%emt 0:02:50]} 18. exd4 {[%emt 0:00:03]} e4 {[%emt 0:03:21]} 19. b4 {[%emt 0:08:34]} f5 {[%emt 0:05:35]} 20. Be2 {[%emt 0:00:28]} Qe6 {[%emt 0:01:54]} 21. Bf2 {[%emt 0:03:56]} Nc4 {[%emt 0:02:58]} 22. Nxc4 {[%emt 0:00:23]} dxc4 {[%emt 0:00:06]} 23. Be3 {[%emt 0:00:05]} Bd5 {[%emt 0:00:57]} 24. a3 {[%emt 0:00:21]} Ra8 {[%emt 0:07:05]} 25. Ra1 {[%emt 0:00:57]} a5 {[%emt 0:00:48]} 26. Rfb1 {[%emt 0:02:00]} a4 {[%emt 0:06:09]} 27. Rf1 {[%emt 0:00:53]} Kf7 {[%emt 0:02:34]} 28. Rf2 {[%emt 0:04:14]} Ke7 {[%emt 0:00:29]} 29. Kf1 {[%emt 0:00:16]} Kd7 {[%emt 0:01:54]} 30. Ke1 {[%emt 0:00:09]} Kc6 {[%emt 0:00:58]} 31. Kd1 {[%emt 0:00:25]} Rae8 {[%emt 0:00:56]} 32. Kc2 {[%emt 0:01:50]} g5 {[%emt 0:01:58]} 33. g3 {[%emt 0:00:16]} gxf4 {[%emt 0:01:09]} 34. gxf4 {[%emt 0:00:01]} Rg8 {[%emt 0:00:23]} 35. Kb2 {[%emt 0:00:37]} Rg7 {[%emt 0:01:07]} 36. Raf1 {[%emt 0:00:32]} Reg8 {[%emt 0:00:43]} 37. Bd1 {[%emt 0:00:18]} Kb5 {[%emt 0:00:38]} 38. Qc2 {[%emt 0:00:01]} Ra8 {[%emt 0:00:22]} 39. Rg2 {[%emt 0:00:35]} Rxg2 {[%emt 0:04:58]} 40. Qxg2 {[%emt 0:00:02]} Qh6 {[%emt 0:00:18]} 41. Qf2 {[%emt 0:04:02]} Qh3 {[%emt 0:05:33]} 42. Rg1 {[%emt 0:00:31]} Rg8 {[%emt 0:01:43]} 43. Qc2 {[%emt 0:03:40]} Ra8 {[%emt 0:03:37]} 44. Qf2 {[%emt 0:00:25]} Rg8 {[%emt 0:01:09]} 45. Qc2 {[%emt 0:00:14]} Ra8 {[%emt 0:00:46]} 46. Qf2 {[%emt 0:00:14]} 1/2-1/2